[Event "26th Hit Open-A 2022"]
[Site "Nova Gorica"]
[Date "2022.09.19"]
[Round "6.19"]
[White "Leitner, Gerald"]
[Black "Lodici, Lorenzo"]
[Result "0-1"]
[ECO "A09"]
[WhiteElo "2181"]
[BlackElo "2559"]
[Annotator "TA"]
[PlyCount "116"]
[EventDate "2022.09.16"]
[EventType "swiss"]
[EventCountry "SLO"]
[SourceTitle "playchess.com"]
[Source "ChessBase"]
[SourceQuality "1"]
[TimeControl "5400+30"]

{[%evp 10,116,-10,-29,-35,-35,-42,-43,-36,-61,-59,-67,-63,-64,-16,-33,-31,-23,1,-65,-54,-57,-52,-52,-59,-45,-29,-81,-51,-43,-36,-65,-75,-83,-52,-92,-71,-78,-71,-95,-75,-75,-75,-77,-71,-71,-71,-83,-71,-110,-95,-120,-121,-125,-115,-112,-88,-149,-142,-149,-140,-178,-154,-251,-257,-255,-227,-208,-206,-214,-140,-283,-278,-335,-251,-318,-244,-323,-251,-363,-358,-353,-335,-322,-320,-421,-365,-372,-347,-437,-452,-549,-210,-668,-654,-988,-991,-866,-665,-887,-828,-5137,-1954,-1698,-1731,-1212,-1350,-29989,-29990]} 1. Nf3 {[%emt 0:00:03]} d5 {[%emt 0:00:10]} 2. c4 {[%emt 0:00:02]} d4 {[%emt 0:00:05]} 3. g3 {[%emt 0:00:03]} Nc6 {[%emt 0:00:07]} 4. Bg2 {[%emt 0:00:01]} e5 {[%emt 0:00:05]} 5. d3 {[%emt 0:00:03]} Bb4+ {[%emt 0:00:04]} 6. Nbd2 {[%emt 0:00:30] CPLX 2.1 19 (Bc1-d2) (=19)} a5 {[%emt 0:00:04] BESTDEEP. A09: Réti Opening: 1 Nf3 d5 2 c4.} 7. O-O {[%emt 0:00:37] BESTDEEP} Nf6 {[%emt 0:00:05] CPLX 2.1} 8. Rb1 {[%emt 0:17:00] CPLX 2.1 1 (a2-a3) (=7)} O-O {[%emt 0:04:57] [#] CPLX 2.1. Black is slightly better.} 9. Nb3 $146 {[%emt 0:04:06] CPLX 2.1 25 (Nf3-e1) (=11)} ({Predecessor:} 9. a3 Bd6 10. b4 axb4 11. axb4 Nxb4 12. Nb3 c5 13. Bd2 Nc6 14. Ng5 Bf5 15. e4 dxe3 16. Bxe3 {½-½ (46) Saraci,N (2398)-Grigoriants,S (2540) Chess.com INT 2019}) 9... h6 {[%emt 0:04:47] BESTDEEP} 10. a3 {[%emt 0:04:43] CPLX 2.4 8 (Bc1-d2) (=11)} Be7 {[%emt 0:00:30] CPLX 2.6} 11. Na1 {[%emt 0:00:05] CPLX 2.2 1 (Nf3-e1) (=9)} Nd7 {[%emt 0:07:34] CPLX 2.0 48 (a5-a4) (=8)} (11... a4 $15) 12. Nc2 $11 {[%emt 0:00:29] CPLX 2.0} a4 {[%emt 0:01:40] BESTDEEP} 13. Bd2 {[%emt 0:05:30] CPLX 2.0} Bd6 {[%emt 0:02:23] CPLX 2.1 24 (Nd7-c5) (=9)} 14. Re1 {[%emt 0:06:00] RELBLUND 66 (e2-e3) (=13)} (14. e3 $11) 14... Nc5 $15 {[%emt 0:06:11] CPLX 2.1} 15. Bb4 {[%emt 0:02:50] CPLX 2.2} Na6 {[%emt 0:11:37][%cal Ra6b4] CPLX 2.4 5 (Bc8-g4) (=8)} (15... Bg4 {keeps more tension.} 16. e3 Nb3 17. exd4 Bxb4 18. axb4 Ncxd4 19. Ncxd4 Nxd4 20. Re4 Bxf3 21. Bxf3 Qd6) 16. Bxd6 {[%emt 0:02:21] EASY} Qxd6 {[%emt 0:00:09] RECAPT} 17. e3 {[%emt 0:10:00] CPLX 2.1} Nc5 {[%emt 0:07:26] CPLX 2.3 16 (Bc8-g4) (=8)} (17... Bg4 $5 {[%cal Re5e4]}) 18. Nb4 {[%emt 0:03:21] CPLX 2.4 52 (Nf3xe5) (=13)} (18. Nxe5 $11 Nxe5 19. exd4) 18... Na5 {[%emt 0:00:19] CPLX 2.6 30 (Bc8-g4) (=9)} 19. exd4 {[%emt 0:02:02] CPLX 2.4} exd4 {[%emt 0:00:05] RECAPT} 20. Re5 {[%emt 0:03:55] CPLX 2.2 29 (Nf3-d2) (=13)} c6 {[%emt 0:01:41] Prevents Rd5. BESTDEEP} 21. Qc2 {[%emt 0:04:03] CPLX 2.6 8 (Qd1-e2) (=13)} f6 {[%emt 0:11:00] CPLX 2.6 31 (Bc8-g4) (=10)} 22. Re2 {[%emt 0:00:42] CPLX 2.7 40 (Re5xc5) (=15)} Nab3 {[%emt 0:00:05] CPLX 2.2 21 (Bc8-g4) (=10)} 23. Rbe1 {[%emt 0:00:23] CPLX 2.4 7 (Nf3-d2) (=14)} g5 {[%emt 0:00:07] CPLX 2.4 7 (Bc8-g4) (=10)} 24. Re8 {[%emt 0:04:18] CPLX 2.5 24 (Nf3-d2) (=15)} Bf5 {[%emt 0:01:54] CPLX 3.4 20 (Rf8xe8) (=11)} 25. Rxa8 {[%emt 0:00:02] BESTDEEP} Rxa8 {[%emt 0:00:07] RECAPT} 26. Nd2 {[%emt 0:02:43] CPLX 2.5} Nxd2 {[%emt 0:00:05] Black is more active. CPLX 2.6 6 (Qd6-f8) (=10)} 27. Qxd2 {[%emt 0:00:01] RECAPT} Bg6 {[%emt 0:00:15] CPLX 2.1} 28. Bh3 {[%emt 0:04:00] CPLX 2.0 12 (Bg2-f3) (=13)} h5 {[%emt 0:00:56][%cal Bh6h5,Bh5h4][%mdl 32] CPLX 2.1 12 (Kg8-f7) (=10)} (28... Kf7 {feels hotter.} 29. f4 gxf4 30. gxf4 Bh5) 29. Bg2 {[%emt 0:00:59] CPLX 2.2 39 (f2-f4) (=14)} Kf7 {[%emt 0:00:37] CPLX 2.0 15 (Kg8-g7) (=10)} 30. Bf1 {[%emt 0:03:09] CPLX 2.6 25 (Bg2-h3) (=14)} h4 {[%emt 0:00:40] BESTDEEP} 31. Bg2 {[%emt 0:04:00] CPLX 2.9 4 (Bf1-e2) (=14)} Rh8 {[%emt 0:00:28] CPLX 3.0} 32. Qe2 {[%emt 0:00:49] CPLX 3.0 0 (Qd2-d1) (=13)} Nd7 {[%emt 0:03:34] CPLX 4.0 24 (Qd6-e6) (=10)} 33. Be4 {[%emt 0:01:17] CPLX 4.1 61 (Bg2-h3) (=15)} (33. Bh3 $142 Nc5 34. Bg2) 33... f5 $17 {[%emt 0:00:39] BESTDEEP} 34. Bg2 {[%emt 0:00:38] CPLX 2.6} Kf6 {[%emt 0:00:04] BESTDEEP} 35. Qd1 {[%emt 0:01:17] CPLX 4.5 38 (Qe2-d2) (=15)} Ne5 {[%emt 0:03:51] BESTDEEP} 36. f3 {[%emt 0:05:15] CPLX 4.1 97 (Qd1-d2) (=18)} ({But not} 36. Qxa4 h3 37. Bh1 f4 $17) (36. Qd2 $17) 36... hxg3 $19 {[%emt 0:03:29] CPLX 3.6} 37. hxg3 {[%emt 0:00:00] RECAPT} f4 {[%emt 0:00:09] CPLX 3.8 28 (Ne5-d7) (=9)} 38. gxf4 {[%emt 0:00:00] CPLX 4.0} gxf4 {[%emt 0:00:05] RECAPT} 39. Qd2 {[%emt 0:00:00] CPLX 4.2 8 (Re1-e2) (=17)} Nd7 {[%emt 0:01:22][%cal Be5d7,Bd7c5,Bc5e6,Be6g7,Bg7h5][%mdl 32] MISS-Kf6-g5 74 (Kf6-g5) (=11)} 40. Kf2 {[%emt 0:00:00] Loses the game. CPLX 4.0 143 (Nb4-a2) (=20)} (40. Na2 $17 {was called for.}) 40... Nc5 {[%emt 0:00:25] BESTDEEP} 41. Kg1 {[%emt 0:02:52] CPLX 4.8 57 (Re1-e2) (=21)} Bf5 {[%emt 0:00:52] CPLX 3.9 84 (Kf6-f7) (=12)} 42. Kf2 {[%emt 0:03:38] CPLX 4.1 67 (Qd2-e2) (=22)} Qc7 {[%emt 0:00:46] CPLX 4.8 74 (Kf6-f7) (=14)} 43. Qe2 {[%emt 0:03:00] CPLX 4.8 79 (Kf2-g1) (=24)} Ne6 {[%emt 0:01:16] CPLX 5.6 72 (Rh8-g8) (=16)} 44. Rh1 {[%emt 0:00:20] CPLX 5.4 112 (Kf2-g1) (=26)} (44. Kg1 {was necessary.}) 44... Re8 {[%emt 0:00:52] DEEPSTRONG=>BLUNDERREACT} 45. Kg1 {[%emt 0:01:59] CPLX 4.9 0 (Rh1-h4) (=26)} Ng7 {[%emt 0:01:14] BESTDEEP} 46. Qf2 {[%emt 0:00:28] BESTDEEP} Qe5 {[%emt 0:00:14] CPLX 4.5} 47. Rh6+ {[%emt 0:00:27] CPLX 4.1 101 (Rh1-h4) (=27)} Kf7 {[%emt 0:00:02] CPLX 3.7 56 (Bf5-g6) (=15)} 48. Rh4 {[%emt 0:02:18] BESTDEEP} Kg6 {[%emt 0:01:03] And now ...Nh5 would win. BESTDEEP} 49. Bf1 {[%emt 0:00:10] CPLX 4.1 90 (Bg2-h3) (=28)} Nh5 {[%emt 0:01:21] DEEPSTRONG} 50. c5 {[%emt 0:00:55] CPLX 4.4 97 (Nb4-c2) (=29)} Qxc5 $2 {[%emt 0:03:59] CPLX 4.4 339 (Qe5-e7) (=22)} (50... Qe7 51. Rxh5 (51. Qg2+ $2 Ng3 $19) 51... Kxh5) 51. Qh2 $2 {[%emt 0:00:36] MISS-Qf2-g2 400 (Qf2-g2) (=37)} (51. Qg2+ Kh6 52. Qh2) 51... Bc8 {[%emt 0:00:52] [#] White must now prevent ...Qg5+. CPLX 4.5} 52. Nc2 {[%emt 0:00:32] CPLX 5.0 334 (Kg1-f2) (=43)} Qg5+ {[%emt 0:00:45] CPLX 5.1=>BLUNDERREACT} 53. Kf2 {[%emt 0:00:22] CPLX 4.1 0 (Qh2-g2) (=43)} c5 {[%emt 0:00:14] aiming for ...Ng3. CPLX 5.8 201 (Nh5-g3) (=25)} 54. Bg2 {[%emt 0:01:17] CPLX 5.7 222 (Rh4xh5) (=46)} Bf5 {[%emt 0:00:42] Hoping for ...Ng3. EASY} 55. Ne1 {[%emt 0:00:18] RELBLUND 400 (Rh4xh5) (=53)} Qg3+ {[%emt 0:00:18] CPLX 5.6 400 (Qg5-e7) (=32)} (55... Qe7 $142 56. Bf1 Qxe1+ 57. Kg1 Bxd3 58. Rg4+ Kh6) 56. Qxg3+ {[%emt 0:00:02] EASY} fxg3+ {[%emt 0:00:07] RECAPT} 57. Kf1 {[%emt 0:00:01] EASY} Kg5 {[%emt 0:00:07] CPLX 2.5} 58. Rh1 {[%emt 0:01:05] RELBLUND 400 (Rh4-e4) (=58)} Nf4 {[%emt 0:00:05] Weighted Error Value: White=0.78/Black=0.46} 0-1

[Event "26th Hit Open-A 2022"]
[Site "Nova Gorica"]
[Date "2022.09.19"]
[Round "6.20"]
[White "Markocic, Tine"]
[Black "Diermair, Andreas"]
[Result "0-1"]
[ECO "C12"]
[WhiteElo "2034"]
[BlackElo "2468"]
[Annotator "TA"]
[PlyCount "114"]
[EventDate "2022.09.16"]
[EventType "swiss"]
[EventCountry "SLO"]
[SourceTitle "playchess.com"]
[Source "ChessBase"]
[SourceQuality "1"]
[TimeControl "5400+30"]

{[%evp 20,114,-46,-32,-41,-54,-4,-31,-4,-12,-4,-4,-6,-20,0,0,0,0,35,10,10,10,15,19,66,31,38,0,54,63,18,-22,0,-102,-24,-22,-12,-39,0,0,0,0,0,0,0,-79,-79,-79,-79,-450,-365,-365,-365,-329,-286,-270,0,-259,-218,-213,-126,-341,-335,-275,-330,-298,-309,-743,-732,-6041,-6041,-12848,-9237,-29958,-29943,-6406,-6406,-4690,-3434,-29984,-29985,-29985,-29974,-29989,-29987,-29987,-29988,-29988,-29989,-29988,-29981,-29977,-4922,-29991,-29992,-29997,-1318]} 1. e4 {[%emt 0:00:52]} e6 {[%emt 0:01:43]} 2. d4 {[%emt 0:01:05]} d5 {[%emt 0:00:04]} 3. Nc3 {[%emt 0:00:20]} Nf6 {[%emt 0:00:35]} 4. Bg5 {[%emt 0:02:23]} Bb4 {[%emt 0:00:30]} 5. e5 {[%emt 0:01:57]} h6 {[%emt 0:00:05]} 6. Bd2 {[%emt 0:03:05]} Bxc3 {[%emt 0:00:39]} 7. bxc3 {[%emt 0:01:13]} Ne4 {[%emt 0:00:28]} 8. Qg4 {[%emt 0:03:34]} Kf8 {[%emt 0:00:39]} 9. Nf3 {[%emt 0:02:35]} c5 {[%emt 0:00:21]} 10. Bd3 {[%emt 0:01:54]} Nxd2 {[%emt 0:00:10]} 11. Kxd2 {[%emt 0:00:08]} c4 {[%emt 0:00:30] C12: French: Classical System: McCutcheon Variation.} 12. Be2 {[%emt 0:00:09] EASY} b5 {[%emt 0:00:37] CPLX 2.6 50 (Bc8-d7) (=25) was the old line (12...Nc6).} (12... Bd7 $15) 13. h4 $11 {[%emt 0:07:19] BESTDEEP} Nc6 {[%emt 0:00:32] CPLX 2.7 27 (Nb8-d7) (=26). Black is slightly better.} 14. a3 {[%emt 0:08:53] BESTDEEP} Bd7 {[%emt 0:00:53] CPLX 3.2 8 (a7-a5) (=21) was the old line (14...a5).} 15. Qf4 {[%emt 0:02:00] CPLX 3.2} a5 {[%emt 0:01:32] CPLX 3.2} 16. g4 {[%emt 0:01:19][%cal Bg2g4,Bg4g5][%mdl 32] CPLX 3.2 14 (h4-h5) (=2)} Rb8 {[%emt 0:21:28] CPLX 3.3 20 (Bd7-e8) (=18)} 17. g5 {[%emt 0:03:18] CPLX 3.3} Qe7 {[%emt 0:01:41] [#] BESTDEEP} 18. g6 $146 {[%emt 0:08:56] EASY} ({Predecessor:} 18. h5 hxg5 19. Nxg5 Rh6 20. Nf3 b4 21. axb4 axb4 22. Rag1 bxc3+ 23. Ke3 Be8 24. Rg6 {½-½ (37) Apaydin,F (2210)-Popov,V (2580) Kemer 2007}) 18... Kg8 {[%emt 0:05:03] CPLX 3.8 35 (b5-b4) (=18)} 19. Qxf7+ {[%emt 0:08:25] CPLX 4.1 25 (g6xf7) (=4)} Qxf7 {[%emt 0:00:05] LEGAL} 20. gxf7+ {[%emt 0:00:10] RECAPT} Kxf7 {[%emt 0:00:04] RECAPT} 21. h5 {[%emt 0:00:10] CPLX 2.5} Rhf8 {[%emt 0:03:26] CPLX 2.6 47 (b5-b4) (=17)} (21... b4 $11 {is more appropriate.}) 22. Nh4 $1 $14 {[%emt 0:04:13] DEEPSTRONG} Kg8 {[%emt 0:02:38] CPLX 2.7 7 (Nc6-e7) (=16)} 23. Rh2 {[%emt 0:02:39] CPLX 2.5 38 (Ra1-f1) (=6)} b4 {[%emt 0:02:19] RELBLUND 54 (Nc6-e7) (=19)} ({Black should try} 23... Ne7 $11) 24. axb4 {[%emt 0:02:07] CPLX 2.8} axb4 {[%emt 0:00:02] RECAPT} 25. cxb4 {[%emt 0:01:46] RECAPT 40 (Nh4-g6) (=8)} Nxd4 {[%emt 0:04:09] EASY} 26. Ra7 {[%emt 0:00:16] RELBLUND 102 (Nh4-g6) (=14)} (26. Ng6 $11 {remains equal.}) 26... Rf7 {[%emt 0:08:43] Black has more active pieces. RELBLUND 78 (c4-c3) (=20)} (26... c3+ $17 27. Kd3 Nxe2 28. Rxd7 Nf4+ 29. Kxc3 Rfc8+ 30. Kd2 Rxb4) 27. Bg4 {[%emt 0:00:55] CPLX 3.2 0 (c2-c3) (=13)} c3+ {[%emt 0:00:13] CPLX 3.0 10 (Kg8-h7) (=20)} 28. Kd3 {[%emt 0:02:48] CPLX 2.9} Rxb4 {[%emt 0:04:37] [#] White must now prevent ...Bb5+. CPLX 3.7 39 (Bd7-e8) (=21)} (28... Be8 $5 {[%cal Rf7a7]} 29. Rxf7 Bxf7 30. Kxc3 Nc6 $15) 29. Ra8+ {[%emt 0:01:53] CPLX 4.2} Rf8 $1 {[%emt 0:00:05] DEEPSTRONG} (29... Kh7 $2 30. Ng6 Bb5+ 31. Kxc3 Rc7+ 32. Kxb4 $18) 30. Rxf8+ {[%emt 0:00:05] EASY} Kxf8 {[%emt 0:00:02] RECAPT} 31. Ng6+ $1 {[%emt 0:01:21] CPLX 2.7} Kf7 {[%emt 0:00:44] ...Bb5+ is the strong threat. CPLX 2.6 0 (Kf8-e8) (=18)} 32. Kxc3 {[%emt 0:02:21] MISSDEEP-Bg4-d1 79 (Bg4-d1) (=14)} (32. Bd1 $1 $11 {keeps the balance.}) 32... Rc4+ $17 {[%emt 0:00:15] EASY} 33. Kd3 {[%emt 0:00:09] CPLX 2.7} Nxc2 {[%emt 0:00:36] aiming for ...Nb4+. CPLX 3.1} 34. f4 $2 {[%emt 0:07:24][%mdl 8192] RELBLUND 371 (Rh2-h3) (=28)} (34. Rh3 $17 {is more resistant.} Ke8 35. f4) 34... Nb4+ {[%emt 0:00:41] CPLX 3.8 85 (Nc2-e1) (=19)} 35. Ke3 {[%emt 0:00:07] EASY} d4+ {[%emt 0:04:33] CPLX 2.8} 36. Kf3 {[%emt 0:00:18] CPLX 2.5} Rc3+ {[%emt 0:02:02] BESTDEEP} ({Worse is} 36... Bc6+ 37. Kg3 $17) 37. Ke4 {[%emt 0:00:37] EASY} Rc4 {[%emt 0:02:55][%cal Rd7c6] CPLX 3.7 270 (Nb4-c2) (=27)} 38. Kf3 {[%emt 0:00:28] DEEPSTRONG=>BLUNDERREACT} Bc6+ {[%emt 0:02:12] EASY} 39. Kg3 {[%emt 0:04:13] CPLX 2.4} Be4 {[%emt 0:04:34] Inhibits f5. CPLX 2.5 87 (Rc4-c3) (=28)} ({Better is} 39... Rc3+ $19 40. Kh4 Nc2) 40. Rf2 $2 {[%emt 0:01:21] CPLX 2.5 215 (Rh2-b2) (=29)} (40. Rb2 $17) 40... Rc3+ $19 {[%emt 0:04:28] CPLX 2.5} 41. Kh4 {[%emt 0:00:13] CPLX 2.5} Rc2 {[%emt 0:01:07] Against Rb2. BESTDEEP} 42. Rf1 {[%emt 0:00:40] BESTDEEP} d3 {[%emt 0:02:49] BESTDEEP} 43. f5 $2 {[%emt 0:00:44] CPLX 2.8 400 (Rf1-a1) (=39)} (43. Ra1 Rh2+ 44. Kg3 Rg2+ 45. Kh3 Rxg4 46. Kxg4) 43... exf5 {[%emt 0:01:16] Strongly threatening ...Rh2+. CPLX 3.1} 44. Bxf5 {[%emt 0:01:00] RELBLUND 400 (Bg4-d1) (=50)} Bxf5 {[%emt 0:00:07] RECAPT} 45. Rxf5+ {[%emt 0:00:06][%mdl 4096] Endgame KRN-KRN. MISSDEEP-Ng6-f4 400 (Ng6-f4) (=60)} Ke6 {[%emt 0:00:14] EASY} 46. Rf8 {[%emt 0:01:31] MISS-Rf5-f1 400 (Rf5-f1) (=69)} d2 {[%emt 0:02:18] DEEPSTRONG} 47. Rd8 {[%emt 0:00:06] RELBLUND} Nc6 {[%emt 0:04:57][%csl LRd8,LRe5] CPLX 3.3} 48. Rd6+ {[%emt 0:00:10] EASY} Kf5 {[%emt 0:00:19] ( -> ...Rc4+). CPLX 3.3} 49. e6 {[%emt 0:01:16] MISSDEEP-Kh4-g3 400 (Kh4-g3) (=74)} Rc4+ {[%emt 0:02:34] EASY} 50. Kg3 {[%emt 0:01:19] RELBLUND} Nd4 {[%emt 0:04:32] CPLX 3.5 11 (Rc4-g4) (=21)} 51. e7 {[%emt 0:00:32] RELBLUND 15 (Ng6-h4) (=71)} d1=Q {[%emt 0:00:54] CPLX 4.0 2 (Rc4-c3) (=20)} 52. Nh4+ {[%emt 0:01:24] BESTDEEP} Kg5 {[%emt 0:02:21] BESTDEEP} 53. Rg6+ {[%emt 0:01:52] BESTDEEP} Kxh5 {[%emt 0:00:02] LEGAL} 54. e8=Q {[%emt 0:00:08] EASY} Rc3+ {[%emt 0:03:03] CPLX 5.2 7 (Qd1-g1) (=19)} 55. Kh2 {[%emt 0:00:43] EASY} Qe2+ {[%emt 0:00:20] RELBLUND 400 (Kh5xh4) (=27)} (55... Kxh4 $142 56. Qd8+ Kh5 57. Qa5+ {[#]} Nb5 $1 {[%mdl 512]} 58. Qxb5+ Kxg6 59. Qe8+ Kf5 60. Qf7+ Ke4 61. Qe8+ Kd3 62. Qd7+ Kc2 63. Qa4+ Kc1 64. Qa1+ Kd2 65. Qa5 Qg4 66. Kh1 Qh4+ 67. Kg2 Qg5+ 68. Qxg5+ hxg5 69. Kf2 Kd1 70. Kf1 Rc2 71. Kg1 Ke1 72. Kh1 Kf2 73. Kh2 Rc4 74. Kh3 Rh4#) 56. Ng2 {[%emt 0:02:33] MISS-Qe8xe2 400 (Qe8xe2) (=72)} Nf3+ {[%emt 0:00:55] CPLX 5.6} ({Not} 56... Qxe8 57. Nf4+ Kh4 58. Ng2+ Kh5 59. Nf4+ Kh4 60. Ng2+ Kh5 $11) 57. Kh3 {[%emt 0:01:29] RELBLUND 5 (Kh2-g3) (=70)} Ng5+ {[%emt 0:00:11] Weighted Error Value: White=0.81/Black=0.37} ({Don't do} 57... Qxe8 58. Nf4#) 0-1

[Event "26th Hit Open-A 2022"]
[Site "Nova Gorica"]
[Date "2022.09.19"]
[Round "6.21"]
[White "Acimovic, Sergej"]
[Black "Rakesh Kumar Jena"]
[Result "0-1"]
[ECO "A87"]
[WhiteElo "2114"]
[BlackElo "2321"]
[Annotator "TA"]
[PlyCount "86"]
[EventDate "2022.09.16"]
[EventType "swiss"]
[EventCountry "SLO"]
[SourceTitle "playchess.com"]
[Source "ChessBase"]
[SourceQuality "1"]
[TimeControl "5400+30"]

{[%evp 15,86,31,33,30,36,4,41,24,32,31,31,23,24,35,51,49,49,17,30,-11,0,0,11,-38,-22,-63,-60,-162,-152,-163,-133,-135,-79,-74,0,0,0,-132,-81,-72,-84,-54,-71,-76,0,0,0,0,0,-271,-265,-545,-541,-586,-535,-496,-460,-684,-593,-502,-273,-1043,-1052,-1013,-977,-1384,-1422,-6133,-6049,-5431,-5147,-29998,-29999]} 1. d4 {[%emt 0:03:24]} c5 {[%emt 0:00:17]} 2. d5 {[%emt 0:00:27]} f5 {[%emt 0:00:06]} 3. Nf3 {[%emt 0:02:39]} Nf6 {[%emt 0:00:09]} 4. g3 {[%emt 0:07:22]} g6 {[%emt 0:00:23]} 5. Bg2 {[%emt 0:00:37]} Bg7 {[%emt 0:00:07]} 6. O-O {[%emt 0:02:06]} O-O {[%emt 0:00:08]} 7. c4 {[%emt 0:07:53]} d6 {[%emt 0:02:03]} 8. Nc3 {[%emt 0:00:11]} Na6 {[%emt 0:04:18] BESTDEEP} 9. a3 {[%emt 0:11:35] BESTDEEP. A87: Dutch Defence: Leningrad System: 5 Nf3.} Nc7 {[%emt 0:02:22] CPLX 2.0 6 (b7-b6) (=3)} 10. Qc2 {[%emt 0:02:06] CPLX 2.0 32 (Ra1-b1) (=16)} Qe8 {[%emt 0:05:46] CPLX 2.0 37 (Ra8-b8) (=14)} 11. a4 {[%emt 0:04:01] [#] CPLX 2.0 17 (b2-b4) (=16). White is slightly better.} Na6 $146 {[%emt 0:06:36] CPLX 2.1 8 (h7-h6) (=13)} ({Predecessor:} 11... e5 12. e4 h6 13. Nh4 Nh7 14. exf5 gxf5 15. g4 f4 16. Be4 Ng5 17. f3 Qd8 {1-0 (34) Goland,M-Uchitel,S (2120) Moscow 1998}) 12. Bd2 {[%emt 0:03:48] CPLX 2.0} h6 {[%emt 0:09:35] BESTDEEP} 13. Ne1 {[%emt 0:06:15] CPLX 2.0 8 (Nc3-b5) (=11)} g5 {[%emt 0:06:02] CPLX 2.0 1 (Na6-b4) (=9)} 14. Nd3 {[%emt 0:02:37] CPLX 2.0} Qh5 {[%emt 0:05:43][%cal Of5f4] CPLX 2.0 16 (Qe8-g6) (=10)} 15. f3 {[%emt 0:08:02] CPLX 2.4} Qg6 {[%emt 0:07:15] CPLX 2.4 0 (Na6-c7) (=9)} 16. Nb5 {[%emt 0:04:26] CPLX 2.0 32 (Ra1-e1) (=11)} f4 {[%emt 0:06:22] CPLX 2.1} 17. Qc1 {[%emt 0:07:42] CPLX 2.8 41 (Qc2-b3) (=14)} fxg3 {[%emt 0:11:24] CPLX 2.7 11 (Na6-b4) (=8)} 18. hxg3 {[%emt 0:00:07] RECAPT} Nh5 {[%emt 0:00:09] BESTDEEP} 19. Be1 {[%emt 0:00:53] CPLX 2.8 49 (Kg1-h2) (=16)} (19. Kh2 $11) 19... Bd7 {[%emt 0:01:56][%cal Oa6b4] CPLX 2.8 16 (Na6-b4) (=8)} 20. Ra3 {[%emt 0:06:07] CPLX 2.9 41 (Qc1-b1) (=18)} Nb4 $1 {[%emt 0:02:35] White must now prevent ...a6. CPLX 3.0} 21. Bf2 {[%emt 0:07:47] CPLX 3.3 102 (Qc1-d2) (=25)} (21. Qd2 $15) 21... Nxd3 $19 {[%emt 0:02:20] CPLX 3.3=>BLUNDERREACT} 22. Rxd3 {[%emt 0:01:11] [#] RECAPT} Be5 $1 {[%emt 0:00:14] BESTDEEP} 23. Qe1 {[%emt 0:04:29] DEEPSTRONG} Bxb2 {[%emt 0:06:11] CPLX 3.1 56 (Rf8-f7) (=9)} (23... Rf7 $142) 24. Nc3 $17 {[%emt 0:00:11] DEEPSTRONG} Ba3 {[%emt 0:01:15] Black has more active pieces. CPLX 2.9 74 (b7-b6) (=13)} (24... b6 $17) 25. Na2 $1 $11 {[%emt 0:01:25] DEEPSTRONG} Bb2 {[%emt 0:00:52] Strongly threatening ...Be5. EASY} 26. Rb3 {[%emt 0:00:46] [#] MISSDEEP-Na2-c3 132 (Na2-c3) (=25)} (26. Nc3 $1 $11) 26... Be5 {[%emt 0:00:07] CPLX 3.0 51 (Qg6-c2) (=15)} (26... Qc2 $142 $1 {[%cal Rc2b3]} 27. Rxb7 Bc8) 27. Rxb7 $17 {[%emt 0:00:54] EASY} Bxa4 {[%emt 0:05:57][%cal Bd7a4,Ba4c2,Bc2f5][%mdl 32] ...Qc2 is the strong threat. CPLX 3.2} 28. Nc3 {[%emt 0:00:07] CPLX 2.8} Bc2 {[%emt 0:01:00] BESTDEEP} 29. Rxe7 {[%emt 0:01:02] CPLX 2.8 5 (Nc3-b5) (=22)} Qf6 {[%emt 0:00:33] CPLX 3.2 76 (Ra8-e8) (=16)} (29... Rae8 $17 30. Rxe8 Rxe8) 30. Re6 $11 {[%emt 0:00:03] EASY} Qg7 $36 {[%emt 0:01:16][%mdl 2048] Black has good play. BESTDEEP} 31. Nb5 {[%emt 0:02:30] CPLX 3.0} Bf5 {[%emt 0:03:07] BESTDEEP} 32. Rxd6 {[%emt 0:00:10][%mdl 8192] MISSDEEP-Re6xe5 271 (Re6xe5) (=30)} (32. Rxe5 $1 $11 {and White stays safe.} Qxe5 33. g4) 32... a6 $19 {[%emt 0:00:09] EASY} 33. Rb6 {[%emt 0:02:12] CPLX 3.5 280 (e2-e4) (=40)} ({Don't blunder} 33. f4 $2 gxf4 34. Nc7 Bxd6 $19) (33. e4 {was worth a try.} Bh7 34. Re6 (34. f4 $2 gxf4 35. Bh3 fxg3 $19) 34... axb5 35. cxb5) 33... axb5 {[%emt 0:00:16] EASY} 34. Rxb5 {[%emt 0:00:01] CPLX 3.6 45 (g3-g4) (=41)} Bc3 {[%emt 0:03:22] MISS-Ra8-a1 51 (Ra8-a1) (=15)} 35. Qd1 {[%emt 0:00:38] BESTDEEP} Ra2 {[%emt 0:04:53] BESTDEEP} ({Wrong is} 35... Ra1 $2 36. Qb3 Rxf1+ 37. Bxf1 $19) 36. e4 {[%emt 0:01:05] CPLX 3.3 224 (d5-d6) (=46)} (36. d6 $142 Rd2 37. Qb3) 36... Rd2 {[%emt 0:01:55] CPLX 5.2 91 (Bf5-d7) (=17)} 37. Qc1 {[%emt 0:00:27] CPLX 5.5} Bd7 {[%emt 0:01:00] CPLX 5.3 229 (Rd2xf2) (=24)} 38. Rb7 $2 {[%emt 0:00:43] [#] MISSDEEP-Rb5-b3 400 (Rb5-b3) (=56)} (38. Rb3 Rxf2 39. Qxc3 Qxc3 40. Rxc3 Rxf1+ 41. Bxf1) 38... Rxf2 $1 {[%emt 0:00:30][%mdl 512] BESTDEEP} 39. Rxf2 {[%emt 0:00:17] RECAPT} Bd4 {[%emt 0:00:00][%cal Og7e5] And now ...Qe5! would win. A strong pair of Bishops. EASY} 40. Qc2 {[%emt 0:00:56] MISS-g3-g4 400 (g3-g4) (=65)} Nxg3 {[%emt 0:00:50] CPLX 5.3=>BLUNDERREACT} 41. Bh3 {[%emt 0:00:41] MISS-e4-e5 400 (e4-e5) (=75)} Bxf2+ {[%emt 0:00:16] CPLX 6.9} 42. Qxf2 {[%emt 0:00:03] RECAPT} Qa1+ {[%emt 0:00:14] CPLX 6.0} 43. Kh2 {[%emt 0:00:22] MISS-Bh3-f1 400 (Bh3-f1) (=82)} Qh1+ {[%emt 0:00:01] Weighted Error Value: White=0.93/Black=0.26 (precise)} 0-1